[Event "*** Titled Tuesday Blitz"]
[Site "Chess.com"]
[Date "2020.05.05"]
[Round "8"]
[White "Olga_Zhuravleva"]
[Black "Kaliopa"]
[Result "1-0"]
[WhiteElo "2268"]
[BlackElo "2095"]
[TimeControl "180+1"]
[EndTime "11:37:00 PDT"]
[Termination "Olga_Zhuravleva won by resignation"]

1. e4 {[%clk 0:03:00.9]} 1... c5 {[%clk 0:02:59.3]} 2. Nf3 {[%clk 0:03:00.3]}
2... Nc6 {[%clk 0:02:58.5]} 3. Nc3 {[%clk 0:02:59]} 3... Nf6 {[%clk 0:02:57.8]}
4. e5 {[%clk 0:02:54.6]} 4... Ng4 {[%clk 0:02:54.4]} 5. Qe2 {[%clk 0:02:52.6]}
5... f6 {[%clk 0:02:25.7]} 6. exf6 {[%clk 0:02:51.6]} 6... Nxf6 {[%clk
0:02:19.5]} 7. d4 {[%clk 0:02:49.5]} 7... cxd4 {[%clk 0:02:09.6]} 8. Nb5 {[%clk
0:02:49.4]} 8... d6 {[%clk 0:02:09.1]} 9. Nbxd4 {[%clk 0:02:48.3]} 9... e5
{[%clk 0:02:06.2]} 10. Nxc6 {[%clk 0:02:06.7]} 10... bxc6 {[%clk 0:02:07.1]} 11.
Bg5 {[%clk 0:02:06.1]} 11... Be7 {[%clk 0:02:05.5]} 12. O-O-O {[%clk 0:02:01.8]}
12... Qa5 {[%clk 0:01:58.1]} 13. a3 {[%clk 0:01:59.3]} 13... Be6 {[%clk
0:01:48.1]} 14. Qa6 {[%clk 0:01:46.1]} 14... Qxa6 {[%clk 0:01:42.4]} 15. Bxa6
{[%clk 0:01:47]} 15... Rb8 {[%clk 0:01:43.2]} 16. Rhe1 {[%clk 0:01:39.7]} 16...
Nd5 {[%clk 0:01:13.8]} 17. Bxe7 {[%clk 0:01:37.4]} 17... Kxe7 {[%clk 0:01:12.6]}
18. Bc4 {[%clk 0:01:29.8]} 18... Nc7 {[%clk 0:01:08.9]} 19. Bxe6 {[%clk
0:01:28]} 19... Nxe6 {[%clk 0:01:09.7]} 20. Re3 {[%clk 0:01:21.2]} 20... Rhf8
{[%clk 0:01:07.2]} 21. b3 {[%clk 0:01:09.8]} 21... Rf7 {[%clk 0:00:57.5]} 22.
Rd2 {[%clk 0:00:58.6]} 22... Rbf8 {[%clk 0:00:55.9]} 23. Rc3 {[%clk 0:00:52]}
23... c5 {[%clk 0:00:50.3]} 24. b4 {[%clk 0:00:34.4]} 24... h6 {[%clk
0:00:36.8]} 25. bxc5 {[%clk 0:00:31.6]} 25... Nxc5 {[%clk 0:00:36.2]} 26. Nxe5
{[%clk 0:00:26.8]} 26... Rf6 {[%clk 0:00:09.1]} 27. Rxc5 {[%clk 0:00:17]} 27...
dxc5 {[%clk 0:00:07.5]} 28. Nd7 {[%clk 0:00:17.3]} 28... Rxf2 {[%clk 0:00:07]}
29. Nxf8 {[%clk 0:00:17.1]} 29... Rxf8 {[%clk 0:00:07.3]} 30. Re2+ {[%clk
0:00:14.2]} 30... Kd6 {[%clk 0:00:07.1]} 31. Kb2 {[%clk 0:00:14.2]} 31... Rf1
{[%clk 0:00:06.8]} 32. Kc3 {[%clk 0:00:14.3]} 32... Ra1 {[%clk 0:00:06.7]} 33.
Kb2 {[%clk 0:00:14.2]} 33... Rh1 {[%clk 0:00:07.2]} 34. h3 {[%clk 0:00:13.2]}
34... Rf1 {[%clk 0:00:07.8]} 35. Kb3 {[%clk 0:00:12.5]} 35... Rf5 {[%clk
0:00:07]} 36. Kc4 {[%clk 0:00:12.4]} 36... Rf4+ {[%clk 0:00:07.3]} 37. Kb5
{[%clk 0:00:12.5]} 37... Rf7 {[%clk 0:00:05.9]} 38. Rd2+ {[%clk 0:00:11.7]}
38... Ke5 {[%clk 0:00:06]} 39. Kxc5 {[%clk 0:00:11.3]} 39... Rc7+ {[%clk
0:00:06.4]} 40. Kb5 {[%clk 0:00:11.2]} 40... Rb7+ {[%clk 0:00:06.1]} 41. Ka6
{[%clk 0:00:11.2]} 41... Rf7 {[%clk 0:00:06.4]} 42. c4 {[%clk 0:00:10.8]} 42...
Ke4 {[%clk 0:00:06.3]} 43. c5 {[%clk 0:00:10.7]} 43... Ke3 {[%clk 0:00:06.8]}
44. Rd6 {[%clk 0:00:10.8]} 44... Rc7 {[%clk 0:00:06.5]} 45. c6 {[%clk
0:00:10.8]} 45... Ke4 {[%clk 0:00:06.4]} 46. Kb5 {[%clk 0:00:11.2]} 46... Ke5
{[%clk 0:00:06.7]} 47. Rd7 {[%clk 0:00:11.8]} 47... Rc8 {[%clk 0:00:06.1]} 48.
Rxa7 {[%clk 0:00:12.3]} 48... g5 {[%clk 0:00:05.3]} 49. Rh7 {[%clk 0:00:11.7]}
49... Kf4 {[%clk 0:00:04]} 50. a4 {[%clk 0:00:10.7]} 50... Kg3 {[%clk
0:00:03.4]} 51. Rxh6 {[%clk 0:00:11.3]} 51... Kxg2 {[%clk 0:00:03.9]} 52. Rg6
{[%clk 0:00:11.8]} 52... Kxh3 {[%clk 0:00:04.4]} 53. Rxg5 {[%clk 0:00:12.2]}
53... Kh4 {[%clk 0:00:05.3]} 54. Rg7 {[%clk 0:00:12.6]} 54... Rf8 {[%clk
0:00:05.2]} 55. a5 {[%clk 0:00:12.8]} 55... Rf1 {[%clk 0:00:06.1]} 56. Kb6
{[%clk 0:00:13.3]} 56... Rb1+ {[%clk 0:00:06.6]} 57. Kc7 {[%clk 0:00:13.6]}
57... Kh5 {[%clk 0:00:07.5]} 58. a6 {[%clk 0:00:12.9]} 58... Kh6 {[%clk
0:00:07.9]} 59. Rg4 {[%clk 0:00:11.7]} 59... Ra1 {[%clk 0:00:08.1]} 60. Kb7
{[%clk 0:00:11.1]} 60... Rb1+ {[%clk 0:00:06.9]} 61. Ka7 {[%clk 0:00:11.1]}
61... Rc1 {[%clk 0:00:07.4]} 62. Kb6 {[%clk 0:00:11]} 62... Kh5 {[%clk
0:00:07.6]} 63. Rb4 {[%clk 0:00:09]} 63... Kg5 {[%clk 0:00:06.4]} 64. c7 {[%clk
0:00:09.1]} 64... Kf6 {[%clk 0:00:05.8]} 65. a7 {[%clk 0:00:09.6]} 65... Ke6
{[%clk 0:00:05.8]} 66. a8=Q {[%clk 0:00:09.6]} 66... Ke5 {[%clk 0:00:04.9]} 67.
Qe8+ {[%clk 0:00:09.3]} 67... Kf6 {[%clk 0:00:05.1]} 68. Rf4+ {[%clk 0:00:08.6]}
68... Kg5 {[%clk 0:00:06]} 69. Qe5+ {[%clk 0:00:08]} 69... Kg6 {[%clk
0:00:05.8]} 70. Rf6+ {[%clk 0:00:08.9]} 70... Kg7 {[%clk 0:00:06.7]} 71. Qe7+
{[%clk 0:00:09.2]} 1-0

[Event "*** Titled Tuesday Blitz"]
[Site "Chess.com"]
[Date "2020.05.05"]
[Round "8"]
[White "Andrei_Belozerov"]
[Black "Anuar_Is"]
[Result "1/2-1/2"]
[WhiteElo "2585"]
[BlackElo "2760"]
[TimeControl "180+1"]
[EndTime "11:37:01 PDT"]
[Termination "Game drawn - insufficient material"]

1. e4 {[%clk 0:03:00]} 1... c5 {[%clk 0:02:58.6]} 2. Nf3 {[%clk 0:02:59.1]} 2...
Nc6 {[%clk 0:02:59.1]} 3. d4 {[%clk 0:02:58.5]} 3... cxd4 {[%clk 0:03:00]} 4.
Nxd4 {[%clk 0:02:58.4]} 4... Nf6 {[%clk 0:03:00.6]} 5. Nc3 {[%clk 0:02:57.8]}
5... e5 {[%clk 0:03:00.6]} 6. Ndb5 {[%clk 0:02:56.7]} 6... d6 {[%clk 0:03:01]}
7. Bg5 {[%clk 0:02:55.3]} 7... a6 {[%clk 0:03:00.9]} 8. Na3 {[%clk 0:02:55.1]}
8... b5 {[%clk 0:03:01.2]} 9. Nd5 {[%clk 0:02:54.6]} 9... Be7 {[%clk 0:03:01.3]}
10. Bxf6 {[%clk 0:02:54.1]} 10... Bxf6 {[%clk 0:03:02.2]} 11. c3 {[%clk
0:02:53.6]} 11... Rb8 {[%clk 0:03:01.6]} 12. Nc2 {[%clk 0:02:52.7]} 12... Bg5
{[%clk 0:03:01.9]} 13. Be2 {[%clk 0:02:44.8]} 13... O-O {[%clk 0:03:00.8]} 14.
O-O {[%clk 0:02:44.3]} 14... Be6 {[%clk 0:03:00.5]} 15. Qd3 {[%clk 0:02:42.7]}
15... a5 {[%clk 0:02:58.2]} 16. Na3 {[%clk 0:02:40.9]} 16... b4 {[%clk
0:02:52.2]} 17. Nb5 {[%clk 0:02:39.5]} 17... bxc3 {[%clk 0:02:45.4]} 18. bxc3
{[%clk 0:02:37]} 18... Ne7 {[%clk 0:02:44.4]} 19. Nbc7 {[%clk 0:02:30.7]} 19...
Qd7 {[%clk 0:02:27.9]} 20. Rab1 {[%clk 0:02:27.5]} 20... Nxd5 {[%clk 0:02:20.2]}
21. Nxd5 {[%clk 0:02:22.7]} 21... Qc6 {[%clk 0:02:07.9]} 22. Rfd1 {[%clk
0:02:07.8]} 22... Rfc8 {[%clk 0:01:58.7]} 23. c4 {[%clk 0:02:00.3]} 23... g6
{[%clk 0:01:50.3]} 24. Rb5 {[%clk 0:01:58.9]} 24... Rxb5 {[%clk 0:01:33.1]} 25.
cxb5 {[%clk 0:01:56.6]} 25... Qc5 {[%clk 0:01:33.6]} 26. g3 {[%clk 0:01:44.6]}
26... Bd8 {[%clk 0:01:29.1]} 27. Kg2 {[%clk 0:01:41.2]} 27... Kg7 {[%clk
0:01:26.6]} 28. h3 {[%clk 0:01:35.4]} 28... Qc2 {[%clk 0:01:20.3]} 29. Bg4
{[%clk 0:01:30.8]} 29... Bxg4 {[%clk 0:01:08.5]} 30. hxg4 {[%clk 0:01:29.2]}
30... Qxa2 {[%clk 0:01:08.1]} 31. b6 {[%clk 0:01:26.2]} 31... Rb8 {[%clk
0:01:06.9]} 32. Qb5 {[%clk 0:01:18.7]} 32... a4 {[%clk 0:01:04]} 33. Rd3 {[%clk
0:01:17.6]} 33... a3 {[%clk 0:01:01.7]} 34. Rf3 {[%clk 0:01:14.9]} 34... Bg5
{[%clk 0:00:40.5]} 35. Qd7 {[%clk 0:01:09.7]} 35... Rf8 {[%clk 0:00:39.8]} 36.
b7 {[%clk 0:01:08.9]} 36... Qb2 {[%clk 0:00:39.8]} 37. Qxd6 {[%clk 0:01:01.4]}
37... Qxb7 {[%clk 0:00:38]} 38. Qxa3 {[%clk 0:01:00.2]} 38... h6 {[%clk
0:00:31.8]} 39. Qd6 {[%clk 0:00:59.1]} 39... Qb8 {[%clk 0:00:30.7]} 40. Qd7
{[%clk 0:00:58.5]} 40... Qb1 {[%clk 0:00:26.2]} 41. Nc3 {[%clk 0:00:51]} 41...
Qb4 {[%clk 0:00:23.7]} 42. Qd5 {[%clk 0:00:45.7]} 42... Qd4 {[%clk 0:00:23.3]}
43. Qxd4 {[%clk 0:00:44.5]} 43... exd4 {[%clk 0:00:24.2]} 44. Nb5 {[%clk
0:00:44.2]} 44... Re8 {[%clk 0:00:24.8]} 45. Rd3 {[%clk 0:00:37.8]} 45... Rxe4
{[%clk 0:00:23.9]} 46. Rxd4 {[%clk 0:00:37.4]} 46... Rxd4 {[%clk 0:00:23.7]} 47.
Nxd4 {[%clk 0:00:37.2]} 47... Bf6 {[%clk 0:00:21.9]} 48. Nc6 {[%clk 0:00:36.7]}
48... Bc3 {[%clk 0:00:21.3]} 49. f4 {[%clk 0:00:35.7]} 49... h5 {[%clk
0:00:20.5]} 50. gxh5 {[%clk 0:00:34.2]} 50... gxh5 {[%clk 0:00:21.4]} 51. Kh3
{[%clk 0:00:34.4]} 51... Kh6 {[%clk 0:00:21.8]} 52. Nd8 {[%clk 0:00:31.8]} 52...
f6 {[%clk 0:00:21.7]} 53. Ne6 {[%clk 0:00:31.4]} 53... Be1 {[%clk 0:00:21.3]}
54. Nd4 {[%clk 0:00:30.8]} 54... Bc3 {[%clk 0:00:21]} 55. Nf3 {[%clk 0:00:30.2]}
55... Bb4 {[%clk 0:00:20.9]} 56. Nh4 {[%clk 0:00:30]} 56... Be1 {[%clk
0:00:20.7]} 57. Kg2 {[%clk 0:00:30.3]} 57... Bd2 {[%clk 0:00:20.7]} 58. Kf3
{[%clk 0:00:30.5]} 58... Bc3 {[%clk 0:00:21.2]} 59. Nf5+ {[%clk 0:00:30.6]}
59... Kg6 {[%clk 0:00:20.9]} 60. Ke4 {[%clk 0:00:31]} 60... Be1 {[%clk 0:00:21]}
61. Nh4+ {[%clk 0:00:29]} 61... Kf7 {[%clk 0:00:21.5]} 62. Kf3 {[%clk
0:00:29.1]} 62... Ke6 {[%clk 0:00:21.9]} 63. Kg2 {[%clk 0:00:29.3]} 63... Bd2
{[%clk 0:00:22]} 64. Kh3 {[%clk 0:00:29.6]} 64... Kf7 {[%clk 0:00:22.5]} 65. Ng2
{[%clk 0:00:29.4]} 65... Bc3 {[%clk 0:00:22.1]} 66. Ne3 {[%clk 0:00:28.7]} 66...
Kg6 {[%clk 0:00:22.4]} 67. Nd5 {[%clk 0:00:28.8]} 67... Be1 {[%clk 0:00:22.2]}
68. Kh4 {[%clk 0:00:28.8]} 68... Kf5 {[%clk 0:00:22]} 69. Ne7+ {[%clk
0:00:28.2]} 69... Ke4 {[%clk 0:00:22.5]} 70. Ng8 {[%clk 0:00:27.3]} 70... Kf3
{[%clk 0:00:21.4]} 71. Nxf6 {[%clk 0:00:25.2]} 71... Bxg3+ {[%clk 0:00:22.3]}
72. Kxh5 {[%clk 0:00:25.5]} 72... Bxf4 {[%clk 0:00:23.2]} 1/2-1/2

[Event "*** Titled Tuesday Blitz"]
[Site "Chess.com"]
[Date "2020.05.05"]
[Round "8"]
[White "DonPreuss"]
[Black "seastar"]
[Result "1/2-1/2"]
[WhiteElo "2168"]
[BlackElo "2104"]
[TimeControl "180+1"]
[EndTime "11:37:08 PDT"]
[Termination "Game drawn - insufficient material"]

1. d4 {[%clk 0:03:00.9]} 1... Nf6 {[%clk 0:02:58.7]} 2. Nc3 {[%clk 0:03:00.7]}
2... c5 {[%clk 0:02:59]} 3. d5 {[%clk 0:03:00.5]} 3... e6 {[%clk 0:02:56.7]} 4.
e4 {[%clk 0:03:00.5]} 4... exd5 {[%clk 0:02:38.5]} 5. exd5 {[%clk 0:03:01.4]}
5... Qe7+ {[%clk 0:02:32.1]} 6. Be2 {[%clk 0:03:00.9]} 6... a6 {[%clk
0:02:31.8]} 7. Nf3 {[%clk 0:02:58.7]} 7... g6 {[%clk 0:02:31.5]} 8. Bg5 {[%clk
0:02:55.9]} 8... d6 {[%clk 0:02:25.5]} 9. O-O {[%clk 0:02:53.9]} 9... h6 {[%clk
0:02:18.9]} 10. Bh4 {[%clk 0:02:52.7]} 10... Bg7 {[%clk 0:02:13.7]} 11. Bd3
{[%clk 0:02:45.5]} 11... O-O {[%clk 0:02:11.5]} 12. Re1 {[%clk 0:02:44.1]} 12...
Qc7 {[%clk 0:02:10.3]} 13. Qd2 {[%clk 0:02:40.8]} 13... Bg4 {[%clk 0:02:01.3]}
14. Qf4 {[%clk 0:02:29]} 14... Bxf3 {[%clk 0:01:55.3]} 15. Qxf3 {[%clk
0:02:28.6]} 15... Nbd7 {[%clk 0:01:51.2]} 16. Re7 {[%clk 0:02:24.8]} 16... Rae8
{[%clk 0:01:33.5]} 17. Rae1 {[%clk 0:02:24.2]} 17... Qc8 {[%clk 0:01:30.1]} 18.
Qg3 {[%clk 0:02:10.8]} 18... Ne5 {[%clk 0:01:24.4]} 19. Rxe8 {[%clk 0:02:07.3]}
19... Rxe8 {[%clk 0:01:21.5]} 20. f4 {[%clk 0:01:58.4]} 20... Nxd3 {[%clk
0:01:18]} 21. Rxe8+ {[%clk 0:01:59]} 21... Qxe8 {[%clk 0:01:16.4]} 22. Qxd3
{[%clk 0:01:59.9]} 22... Ng4 {[%clk 0:01:10.1]} 23. h3 {[%clk 0:01:56.4]} 23...
Qe3+ {[%clk 0:01:05.1]} 24. Qxe3 {[%clk 0:01:51.2]} 24... Nxe3 {[%clk
0:01:04.4]} 25. Ne4 {[%clk 0:01:49.4]} 25... Nxd5 {[%clk 0:01:00.9]} 26. Nxd6
{[%clk 0:01:48.2]} 26... b5 {[%clk 0:00:54]} 27. c3 {[%clk 0:01:43.8]} 27...
Nxf4 {[%clk 0:00:52.5]} 28. Bf2 {[%clk 0:01:41.7]} 28... Nd3 {[%clk 0:00:52]}
29. Nb7 {[%clk 0:01:35.6]} 29... c4 {[%clk 0:00:49.3]} 30. Nc5 {[%clk
0:01:31.9]} 30... Nxb2 {[%clk 0:00:48.6]} 31. Nxa6 {[%clk 0:01:31.2]} 31... Bxc3
{[%clk 0:00:47.7]} 32. Bc5 {[%clk 0:01:24.1]} 32... Nd3 {[%clk 0:00:46.2]} 33.
Bd6 {[%clk 0:01:21.6]} 33... Bd4+ {[%clk 0:00:44.3]} 34. Kf1 {[%clk 0:01:21.6]}
34... c3 {[%clk 0:00:44]} 35. Ke2 {[%clk 0:01:10.1]} 35... c2 {[%clk 0:00:40.5]}
36. Kd2 {[%clk 0:01:08]} 36... Ne5 {[%clk 0:00:16.4]} 37. Kxc2 {[%clk
0:00:59.3]} 37... Nc4 {[%clk 0:00:16.5]} 38. Bb4 {[%clk 0:00:54.2]} 38... Ne3+
{[%clk 0:00:15.8]} 39. Kd3 {[%clk 0:00:53.8]} 39... Bb6 {[%clk 0:00:14.1]} 40.
g4 {[%clk 0:00:51.1]} 40... Nd5 {[%clk 0:00:12.7]} 41. Bd2 {[%clk 0:00:49.4]}
41... Kg7 {[%clk 0:00:11.6]} 42. Nb8 {[%clk 0:00:45.2]} 42... f5 {[%clk
0:00:11.2]} 43. gxf5 {[%clk 0:00:43]} 43... gxf5 {[%clk 0:00:12.1]} 44. Nd7
{[%clk 0:00:43]} 44... Kg6 {[%clk 0:00:11.8]} 45. Ne5+ {[%clk 0:00:34.3]} 45...
Kh5 {[%clk 0:00:11.4]} 46. Nf3 {[%clk 0:00:34.4]} 46... b4 {[%clk 0:00:09.9]}
47. Kc2 {[%clk 0:00:30.3]} 47... Ne3+ {[%clk 0:00:09.3]} 48. Kb3 {[%clk
0:00:29.6]} 48... Nd5 {[%clk 0:00:07.8]} 49. Bxb4 {[%clk 0:00:27.5]} 49... Nxb4
{[%clk 0:00:07.1]} 50. Kxb4 {[%clk 0:00:27.9]} 50... Bf2 {[%clk 0:00:05.1]} 51.
a4 {[%clk 0:00:26.8]} 51... f4 {[%clk 0:00:05]} 52. a5 {[%clk 0:00:24.7]} 52...
Kg6 {[%clk 0:00:05.3]} 53. a6 {[%clk 0:00:20.3]} 53... Kf5 {[%clk 0:00:05.5]}
54. Kc4 {[%clk 0:00:16.3]} 54... Ke4 {[%clk 0:00:04.6]} 55. Nd2+ {[%clk
0:00:15.9]} 55... Kf5 {[%clk 0:00:03.1]} 56. Nb3 {[%clk 0:00:15.8]} 56... Ba7
{[%clk 0:00:02.9]} 57. Kd5 {[%clk 0:00:14.4]} 57... f3 {[%clk 0:00:02.9]} 58.
Nd2 {[%clk 0:00:13.8]} 58... Kf4 {[%clk 0:00:03.1]} 59. Nf1 {[%clk 0:00:13.8]}
59... f2 {[%clk 0:00:02.5]} 60. h4 {[%clk 0:00:09.7]} 60... Kf3 {[%clk
0:00:02.8]} 61. h5 {[%clk 0:00:09.2]} 61... Kg2 {[%clk 0:00:03.1]} 62. Nd2
{[%clk 0:00:09.4]} 62... f1=Q {[%clk 0:00:02.6]} 63. Nxf1 {[%clk 0:00:09.6]}
63... Kxf1 {[%clk 0:00:03.5]} 64. Ke4 {[%clk 0:00:09.9]} 64... Kg2 {[%clk
0:00:03.4]} 65. Kf5 {[%clk 0:00:10.2]} 65... Kh3 {[%clk 0:00:02.8]} 66. Kg6
{[%clk 0:00:08]} 66... Be3 {[%clk 0:00:02.5]} 67. Kh7 {[%clk 0:00:04.6]} 67...
Kh4 {[%clk 0:00:01.7]} 68. a7 {[%clk 0:00:04.4]} 68... Bxa7 {[%clk 0:00:01.9]}
69. Kxh6 {[%clk 0:00:04.9]} 69... Be3+ {[%clk 0:00:02.3]} 70. Kg6 {[%clk
0:00:05.4]} 70... Kg4 {[%clk 0:00:02.3]} 71. h6 {[%clk 0:00:04.6]} 71... Bxh6
{[%clk 0:00:02.6]} 1/2-1/2

[Event "*** Titled Tuesday Blitz"]
[Site "Chess.com"]
[Date "2020.05.05"]
[Round "8"]
[White "Azeryahu"]
[Black "AlexTriapishko"]
[Result "0-1"]
[WhiteElo "2888"]
[BlackElo "2775"]
[TimeControl "180+1"]
[EndTime "11:37:11 PDT"]
[Termination "AlexTriapishko won by resignation"]

1. e4 {[%clk 0:03:00.9]} 1... e5 {[%clk 0:02:56.1]} 2. Nc3 {[%clk 0:03:00.4]}
2... Nc6 {[%clk 0:02:55.8]} 3. Bc4 {[%clk 0:03:00.2]} 3... Nf6 {[%clk
0:02:55.6]} 4. d3 {[%clk 0:03:00.1]} 4... Na5 {[%clk 0:02:56.1]} 5. Qf3 {[%clk
0:02:59.4]} 5... Bc5 {[%clk 0:02:46.5]} 6. Nge2 {[%clk 0:02:59.2]} 6... d6
{[%clk 0:02:21.9]} 7. h3 {[%clk 0:02:58.7]} 7... Nxc4 {[%clk 0:02:16]} 8. dxc4
{[%clk 0:02:59.6]} 8... h6 {[%clk 0:02:16.6]} 9. a4 {[%clk 0:02:50.7]} 9... c6
{[%clk 0:02:08.6]} 10. O-O {[%clk 0:02:47.8]} 10... Be6 {[%clk 0:02:07.9]} 11.
b3 {[%clk 0:02:47.6]} 11... a5 {[%clk 0:01:45.7]} 12. Be3 {[%clk 0:02:47.4]}
12... Nd7 {[%clk 0:01:36.4]} 13. Qg3 {[%clk 0:02:41.9]} 13... g5 {[%clk
0:01:10]} 14. Rfd1 {[%clk 0:02:30.9]} 14... Qe7 {[%clk 0:01:09.6]} 15. Rd3
{[%clk 0:02:31.2]} 15... f5 {[%clk 0:01:00.8]} 16. exf5 {[%clk 0:02:26.3]} 16...
Bxf5 {[%clk 0:01:01.7]} 17. Rd2 {[%clk 0:02:26.8]} 17... Bb4 {[%clk 0:00:57.7]}
18. Rc1 {[%clk 0:01:49.4]} 18... Nf6 {[%clk 0:00:49.8]} 19. Bb6 {[%clk
0:01:36.2]} 19... O-O {[%clk 0:00:43.3]} 20. Rdd1 {[%clk 0:01:27.8]} 20... Nh5
{[%clk 0:00:34]} 21. Qe3 {[%clk 0:01:23.5]} 21... Ra6 {[%clk 0:00:21.4]} 22. Rf1
{[%clk 0:00:56.4]} 22... Nf4 {[%clk 0:00:19.8]} 23. Kh2 {[%clk 0:00:36.7]} 23...
Rfa8 {[%clk 0:00:12.2]} 24. Ng3 {[%clk 0:00:32.1]} 24... Bg6 {[%clk 0:00:10]}
25. Nce4 {[%clk 0:00:32.3]} 25... d5 {[%clk 0:00:07]} 26. Bc5 {[%clk 0:00:20.5]}
26... Bxc5 {[%clk 0:00:07.2]} 27. Qxc5 {[%clk 0:00:21.4]} 27... Qxc5 {[%clk
0:00:03.2]} 28. Nxc5 {[%clk 0:00:22.3]} 28... R6a7 {[%clk 0:00:04.1]} 29. Rfe1
{[%clk 0:00:20.9]} 29... e4 {[%clk 0:00:03.7]} 30. Rcd1 {[%clk 0:00:21.4]} 30...
b6 {[%clk 0:00:02.1]} 31. cxd5 {[%clk 0:00:15.3]} 31... cxd5 {[%clk 0:00:02.7]}
32. Ncxe4 {[%clk 0:00:10.9]} 32... dxe4 {[%clk 0:00:03.6]} 33. Nxe4 {[%clk
0:00:11.8]} 33... Bxe4 {[%clk 0:00:03.9]} 34. Rxe4 {[%clk 0:00:12.7]} 34... Rg7
{[%clk 0:00:04]} 35. Rd6 {[%clk 0:00:11.9]} 35... Kh7 {[%clk 0:00:04.2]} 36.
Rxb6 {[%clk 0:00:11.5]} 36... Rd8 {[%clk 0:00:04.7]} 37. g3 {[%clk 0:00:11.2]}
37... Nd5 {[%clk 0:00:04.4]} 38. Rc6 {[%clk 0:00:11.7]} 38... Nb4 {[%clk
0:00:04.2]} 39. Re2 {[%clk 0:00:08.8]} 39... Nxc6 {[%clk 0:00:03.7]} 40. c3
{[%clk 0:00:09.3]} 40... Re7 {[%clk 0:00:03.9]} 41. Rb2 {[%clk 0:00:08.3]} 41...
Re1 {[%clk 0:00:03.5]} 42. b4 {[%clk 0:00:08.6]} 42... axb4 {[%clk 0:00:03.4]}
43. cxb4 {[%clk 0:00:09.5]} 43... Ra8 {[%clk 0:00:03.6]} 44. b5 {[%clk
0:00:09.5]} 44... Ne5 {[%clk 0:00:03.9]} 45. b6 {[%clk 0:00:08.8]} 45... Nc4
{[%clk 0:00:04.4]} 46. Rb4 {[%clk 0:00:07.1]} 46... Nxb6 {[%clk 0:00:04.3]} 47.
Rxb6 {[%clk 0:00:08]} 47... Rxa4 {[%clk 0:00:04.8]} 48. Kg2 {[%clk 0:00:08.1]}
48... Re7 {[%clk 0:00:03.8]} 49. Rf6 {[%clk 0:00:07.8]} 49... Raa7 {[%clk
0:00:04.1]} 50. Rb6 {[%clk 0:00:07.6]} 50... Kg7 {[%clk 0:00:04.3]} 51. Rb4
{[%clk 0:00:08]} 51... Rf7 {[%clk 0:00:04.7]} 52. h4 {[%clk 0:00:08.4]} 52...
Ra2 {[%clk 0:00:04.7]} 53. hxg5 {[%clk 0:00:08.6]} 53... Raxf2+ {[%clk
0:00:04.9]} 54. Kh3 {[%clk 0:00:09.5]} 54... hxg5 {[%clk 0:00:05.8]} 55. Kg4
{[%clk 0:00:10.4]} 55... Kg6 {[%clk 0:00:05.6]} 56. Rb5 {[%clk 0:00:10.3]} 56...
R2f5 {[%clk 0:00:05.3]} 57. Rb8 {[%clk 0:00:10.1]} 57... Rd5 {[%clk 0:00:04.8]}
58. Rb4 {[%clk 0:00:09.8]} 58... Rfd7 {[%clk 0:00:04.2]} 59. Rb6+ {[%clk
0:00:09.3]} 59... R7d6 {[%clk 0:00:04.7]} 60. Rb7 {[%clk 0:00:08.6]} 60... Rd4+
{[%clk 0:00:05.1]} 61. Kh3 {[%clk 0:00:09.5]} 61... g4+ {[%clk 0:00:05.6]} 62.
Kh4 {[%clk 0:00:10]} 62... Kf5 {[%clk 0:00:06.1]} 63. Rf7+ {[%clk 0:00:07.1]}
63... Rf6 {[%clk 0:00:06]} 64. Rh7 {[%clk 0:00:07.3]} 64... Rd1 {[%clk
0:00:05.4]} 65. Rh5+ {[%clk 0:00:05.8]} 65... Ke4 {[%clk 0:00:05.2]} 66. Kxg4
{[%clk 0:00:05]} 66... Rg6+ {[%clk 0:00:05.6]} 0-1